[Event "Croatian 1B League 2022"]
[Site "Porec"]
[Date "2022.09.28"]
[Round "5.10"]
[White "Grbac, Ivica"]
[Black "Drmic, Tomislav"]
[Result "0-1"]
[ECO "C00"]
[WhiteElo "2114"]
[BlackElo "2254"]
[Annotator "TA"]
[PlyCount "94"]
[EventDate "2022.09.24"]
[EventType "team-tourn"]
[EventCountry "CRO"]
[SourceTitle "playchess.com"]
[Source "ChessBase"]
[SourceQuality "1"]
[TimeControl "40/5400+30:1800+30"]

{[%evp 9,94,17,22,24,26,8,24,-8,-10,-8,-8,-29,-36,-50,-50,-72,-71,-78,-71,-75,-77,-100,-75,-104,-99,-122,-105,-157,-163,-269,-189,-375,-382,-374,-325,-426,-403,-406,-413,-414,-395,-394,-318,-352,-329,-357,-93,-90,-74,-80,184,159,177,27,37,-21,-21,-22,-17,-48,-15,-92,-34,-170,-168,-206,-161,-333,-321,-289,-190,-191,-157,-151,-119,-459,-445,-29982,-1760,-1493,-1482,-29984,-29985,-29985,-29985,-29980,-6334]} 1. e4 {[%emt 0:00:08]} e6 {[%emt 0:00:13]} 2. f4 {[%emt 0:00:35]} d5 {[%emt 0:00:23]} 3. e5 {[%emt 0:00:29]} Ne7 {[%emt 0:00:23]} 4. c3 {[%emt 0:02:37]} Qd7 {[%emt 0:02:42]} 5. Nf3 {[%emt 0:01:43]} b6 {[%emt 0:00:18]} 6. d4 {[%emt 0:01:30] C00: French: Unusual White 2nd moves.} Nf5 {[%emt 0:03:57] [#]} 7. Bd3 $146 {[%emt 0:02:46]} ({Predecessor:} 7. g4 Nh6 8. h3 Ba6 9. Bxa6 Nxa6 10. O-O c5 11. Qe2 Nb8 12. Be3 Nc6 13. Nbd2 {1-0 (31) Boyer,M (2307)-Taboas Rodriguez,D (2367) Chess.com INT 2020}) 7... Ba6 {[%emt 0:00:51]} 8. O-O {[%emt 0:03:20] White has an edge.} Bxd3 {[%emt 0:01:18]} 9. Qxd3 {[%emt 0:00:11]} h5 {[%emt 0:00:41]} 10. a4 {[%emt 0:02:19]} c5 {[%emt 0:01:03]} 11. b3 {[%emt 0:02:59]} Nc6 {[%emt 0:00:32]} 12. Ba3 {[%emt 0:02:45]} Be7 {[%emt 0:05:43]} 13. Nbd2 {[%emt 0:02:41]} Rc8 {[%emt 0:01:52][%cal Ba8c8,Bc8c7,Bc7b7][%mdl 32]} 14. Rfc1 {[%emt 0:03:35]} O-O {[%emt 0:00:56]} 15. Bb2 {[%emt 0:05:40]} Na5 {[%emt 0:07:19]} 16. Qe2 {[%emt 0:03:10]} Rc7 {[%emt 0:02:43]} 17. Kh1 {[%emt 0:06:32]} g6 {[%emt 0:06:27]} 18. dxc5 {[%emt 0:03:16]} (18. Qd3 $142) 18... bxc5 $17 {[%emt 0:00:13][%cal Bb6c5,Bc5b4][%mdl 32]} 19. Rg1 {[%emt 0:00:29]} (19. Qb5 $142 Nc6 20. Qf1) 19... Kg7 {[%emt 0:11:47]} 20. g4 $2 {[%emt 0:03:11]} (20. Qb5 {might work better.} Nc6 21. Qd3) 20... hxg4 $19 {[%emt 0:00:07]} 21. Rxg4 {[%emt 0:00:14]} Rb7 {[%emt 0:02:06] Prevents Qb5.} 22. Rag1 {[%emt 0:01:04]} Rh8 {[%emt 0:00:57]} (22... Nxb3 $2 23. Nf1 $19) 23. b4 {[%emt 0:12:05]} cxb4 {[%emt 0:11:18]} 24. Nd4 {[%emt 0:01:21]} Nxd4 {[%emt 0:01:08]} 25. cxd4 {[%emt 0:00:38]} Rc7 {[%emt 0:02:09] Hoping for ...Rc2.} 26. R4g2 {[%emt 0:05:14][%cal Of4f5]} Nc4 {[%emt 0:02:57]} (26... Qxa4 27. f5 exf5 28. e6 $17) 27. f5 {[%emt 0:01:17]} exf5 {[%emt 0:03:59]} (27... Nxb2 $19 {has better winning chances.} 28. f6+ Kg8 29. fxe7 Qxe7) 28. e6 $17 {[%emt 0:00:54][%cal Be5e6,Be6f7][%mdl 32]} Qd6 {[%emt 0:00:17]} ({Reject} 28... Qxe6 $6 29. Rxg6+ Qxg6 30. Nxc4 Rxc4 31. Qxe7 $11) (28... Qxa4 $2 29. Nxc4 Rxc4 30. exf7 Kxf7 31. Qe5 $18) 29. exf7 {[%emt 0:01:05]} Rh6 $2 {[%emt 0:09:11][%mdl 8192] [#] Really sharp! Black is more active.} (29... g5 $17 {keeps the pressure on.} 30. Rxg5+ Bxg5 31. Rxg5+ Kf6 32. Nxc4 dxc4) 30. Bc1 $18 {[%emt 0:02:35]} f4 {[%emt 0:01:53] [#]} 31. Nxc4 {[%emt 0:01:42]} ({White must play} 31. Nf3 $1 $18 {[%cal Rf3e5] Ne5 is the strong threat.} Qf6 32. Rf1) 31... Rxc4 $11 {[%emt 0:03:46]} (31... dxc4 $2 32. Qf3 Kxf7 33. Bxf4 $18) 32. Bxf4 {[%emt 0:02:51]} Qxf4 {[%emt 0:00:17]} 33. Qxe7 {[%emt 0:00:15][%csl Ge7][%cal Rf7f8]} Qxf7 {[%emt 0:00:15]} 34. Qe5+ {[%emt 0:00:55]} Kh7 {[%emt 0:00:11]} (34... Qf6 $5 {[%cal Rf6e5]} 35. Qe8 a6 $15) 35. Re1 {[%emt 0:01:03]} (35. a5 $11) 35... Rc7 {[%emt 0:04:48]} ({Black should play} 35... Rh4 $17 {White must now prevent ...Re4.} 36. Qe7 Qxe7 37. Rxe7+ Kh6 38. Rxa7 Rhxd4) 36. Kg1 {[%emt 0:01:23]} (36. Rf2 $15 Qg7 37. Qd6) 36... Rh5 $19 {[%emt 0:01:16]} 37. Qd6 {[%emt 0:00:39]} a5 {[%emt 0:01:08]} 38. Rf1 $2 {[%emt 0:01:50]} (38. Qb6) 38... Rf5 {[%emt 0:00:38][%csl Gf7][%cal Rf5f1]} 39. Re1 {[%emt 0:03:02]} Qg7 $40 {[%emt 0:01:45][%mdl 128] Black goes for the king.} 40. Kh1 {[%emt 0:00:00][%cal Og2g6]} Rcf7 {[%emt 0:00:00]} 41. Reg1 {[%emt 0:04:16][%cal Rg2g6]} g5 {[%emt 0:09:47]} 42. Qd8 $2 {[%emt 0:06:35][%mdl 8192]} (42. Qc5 $17 {is more resistant.}) 42... Qxd4 {[%emt 0:01:12] Strongly threatening ...Qe4.} 43. h4 {[%emt 0:01:26]} (43. Rxg5 {is a self mate.} Rxg5 44. Qxg5 Qe4+ 45. Qg2 Qxg2+ 46. Rxg2 Rf1+ 47. Rg1 Rxg1+ 48. Kxg1 b3 49. h3 b2 50. Kf2 b1=Q 51. Ke3 Qe4+ 52. Kd2 d4 53. h4 Qe3+ 54. Kc2 Qc3+ 55. Kb1 d3 56. Ka2 d2 57. h5 d1=Q 58. h6 Qdc2#) (43. Rg4 $19 Qe3 44. Rh4+ Kg6 45. Rhg4 (45. Qg8+ $2 Rg7 $19)) 43... Rf4 {[%emt 0:01:23]} (43... Qe4 $142 44. hxg5 Kg7 45. Qb6 Rf4 46. Qh6+ Kg8 47. Rc1 Rh4+ 48. Qxh4 Qxh4+ 49. Kg1 Qd4+ 50. Kh1 Rh7+ 51. Rh2 Qe4+ 52. Kg1 Qe3+ 53. Rf2 Qxc1+ 54. Kg2 Qh1+ 55. Kg3 Qh4+ 56. Kf3 Rf7+ 57. Ke2 Rxf2+ 58. Ke3 Rg2 59. Kf3 Qg3#) 44. Qxg5 {[%emt 0:07:25]} Rxh4+ {[%emt 0:00:16]} 45. Rh2 {[%emt 0:00:34]} Qe4+ {[%emt 0:01:12] Black mates.} 46. Qg2 {[%emt 0:00:18]} Qxg2+ {[%emt 0:00:10]} 47. Kxg2 {[%emt 0:00:13]} Rg7+ {[%emt 0:00:07] Weighted Error Value: White=0.76/Black=0.46} 0-1

[Event "Croatian 1B League 2022"]
[Site "Porec"]
[Date "2022.09.28"]
[Round "5.11"]
[White "Ascic, Pero"]
[Black "Kukurin, Luka"]
[Result "1-0"]
[ECO "D04"]
[WhiteElo "2237"]
[BlackElo "2089"]
[Annotator "TA"]
[PlyCount "111"]
[EventDate "2022.09.24"]
[EventType "team-tourn"]
[EventCountry "CRO"]
[SourceTitle "playchess.com"]
[Source "ChessBase"]
[SourceQuality "1"]
[TimeControl "40/5400+30:1800+30"]

{[%evp 9,111,2,13,0,38,39,44,35,30,33,37,20,36,35,27,35,25,27,28,27,30,22,42,25,44,11,31,17,10,14,13,-14,19,0,16,0,15,14,20,16,20,6,17,17,27,0,26,14,34,33,41,54,50,46,54,52,50,27,56,45,47,31,45,4,33,5,9,5,32,22,22,28,25,24,21,21,25,30,122,110,114,70,215,220,470,453,922,916,916,930,888,903,816,812,2257,2004,1509,947,12825,12831,12829,12830,12839,12839]} 1. d4 {[%emt 0:00:54]} d5 {[%emt 0:00:39]} 2. Nf3 {[%emt 0:00:35]} c5 {[%emt 0:01:04]} 3. e3 {[%emt 0:03:27]} Nf6 {[%emt 0:03:07]} 4. a3 {[%emt 0:01:52]} e6 {[%emt 0:01:42]} 5. Be2 {[%emt 0:01:04]} Nc6 {[%emt 0:01:20]} 6. O-O {[%emt 0:00:40] D04: Colle System.} Bd6 {[%emt 0:00:58]} 7. dxc5 {[%emt 0:01:10]} Bxc5 {[%emt 0:00:26]} 8. b4 {[%emt 0:00:02] White is slightly better.} Be7 {[%emt 0:04:41]} 9. Bb2 {[%emt 0:01:42]} O-O {[%emt 0:00:45]} 10. Nbd2 {[%emt 0:03:38]} b6 {[%emt 0:10:42]} 11. c4 {[%emt 0:06:22]} Bb7 {[%emt 0:00:45]} 12. Qc2 {[%emt 0:04:02] [#]} Rc8 $146 {[%emt 0:12:24]} ({Predecessor:} 12... h6 13. Rad1 Rc8 14. e4 dxc4 15. Nxc4 Qc7 16. Rd2 b5 17. Ne3 Qb6 18. Qb1 a5 19. bxa5 Nxa5 20. Bd4 {½-½ (20) Glaschak,J (1433)-Grenz,M (1455) Lehrte 2017}) 13. Rfd1 {[%emt 0:02:04]} Qc7 {[%emt 0:08:28]} 14. Rac1 {[%emt 0:05:38] [#] Hoping for Bxf6.} Qb8 {[%emt 0:01:07]} 15. Qb1 {[%emt 0:06:06]} h6 {[%emt 0:03:37]} 16. Qa1 {[%emt 0:03:51] Threatens to win with cxd5.} Rfd8 {[%emt 0:06:31]} 17. h3 {[%emt 0:05:03]} Qa8 {[%emt 0:01:26]} 18. Bf1 {[%emt 0:01:58]} Nb8 {[%emt 0:06:21]} 19. Ne5 {[%emt 0:05:16]} Nbd7 {[%emt 0:01:18]} 20. Ndf3 {[%emt 0:12:25]} (20. Nxd7 {with more complications.} Rxd7 21. Bd4 dxc4 22. Nxc4 Bd5 23. f3) 20... Nxe5 {[%emt 0:00:56]} (20... dxc4 {is more complex.} 21. Nxd7 Rxd7 22. Rxd7 Nxd7 23. Ne1 b5) 21. Nxe5 {[%emt 0:00:31]} dxc4 {[%emt 0:02:47] Strongly threatening ...b5.} 22. Rxc4 {[%emt 0:01:01]} (22. Rxd8+ {seems wilder.} Rxd8 23. Nxc4 Bd5 24. b5) 22... Rxd1 {[%emt 0:03:18]} 23. Qxd1 {[%emt 0:03:47]} Rxc4 {[%emt 0:00:22]} 24. Nxc4 {[%emt 0:00:16]} Bd5 {[%emt 0:09:49]} 25. Qd4 {[%emt 0:04:24]} Bf8 {[%emt 0:02:47]} 26. f3 {[%emt 0:01:14]} Qb8 {[%emt 0:01:37]} 27. e4 {[%emt 0:00:21]} Bb7 {[%emt 0:02:29]} 28. Qd2 {[%emt 0:00:56]} Qc7 {[%emt 0:01:13]} 29. Be5 {[%emt 0:00:18]} Qd7 {[%emt 0:05:10]} 30. Qxd7 {[%emt 0:02:43]} Nxd7 {[%emt 0:00:01]} 31. Bc7 {[%emt 0:00:16]} Bc6 {[%emt 0:06:54]} 32. Kf2 {[%emt 0:00:26]} Be7 {[%emt 0:00:35]} 33. Ke3 {[%emt 0:00:15]} Bb5 {[%emt 0:00:44][%cal Oa7a5]} 34. Bd3 {[%emt 0:00:34][%cal Oc4b6]} Ba4 {[%emt 0:00:49]} 35. f4 {[%emt 0:05:46]} Kf8 {[%emt 0:00:05]} 36. Kd4 {[%emt 0:01:23]} Bh4 {[%emt 0:00:39]} 37. Nd6 {[%emt 0:04:25]} Bf2+ {[%emt 0:00:11]} 38. Kc3 {[%emt 0:00:10]} a5 {[%emt 0:00:46]} 39. Bb5 {[%emt 0:02:20]} Bxb5 {[%emt 0:00:38]} 40. Nxb5 {[%emt 0:00:00]} axb4+ {[%emt 0:00:00]} 41. axb4 $11 {[%emt 0:00:06][%mdl 4096] Endgame KBN-KBN} Nf6 {[%emt 0:09:46]} 42. Kd3 {[%emt 0:00:57]} Ke7 {[%emt 0:02:05]} 43. Nd4 {[%emt 0:08:30]} Kd7 {[%emt 0:01:45]} (43... Bg3 $11) 44. Bxb6 $16 {[%emt 0:01:40]} Nh5 {[%emt 0:00:16]} 45. Ke2 {[%emt 0:01:13]} Bg1 {[%emt 0:05:01] Loses the game.} ({Better is} 45... Bxd4 $14 46. Bxd4 Nxf4+ 47. Kf3 g5) 46. Kf3 $18 {[%emt 0:01:26]} f6 $2 {[%emt 0:00:34]} (46... g5 47. fxg5 hxg5) 47. Bc5 {[%emt 0:09:10] White is clearly winning.} Nxf4 {[%emt 0:07:21]} (47... e5 $142) 48. Kxf4 {[%emt 0:00:32][%cal Od4e6]} e5+ {[%emt 0:00:05] [#]} 49. Kf3 $1 {[%emt 0:00:28] And now Nf5 would win.} exd4 {[%emt 0:00:19] KB-KB} 50. Ke2 {[%emt 0:01:02]} Kc6 {[%emt 0:00:30]} 51. Kd3 {[%emt 0:00:10]} Kb5 {[%emt 0:00:05]} 52. Bf8 {[%emt 0:03:59]} g6 {[%emt 0:01:19]} 53. Bxh6 {[%emt 0:01:45] Black must now prevent Bg7.} Kxb4 {[%emt 0:00:05]} 54. Bg7 {[%emt 0:00:08]} Kc5 {[%emt 0:00:39]} 55. Bxf6 {[%emt 0:00:08]} Be3 {[%emt 0:02:01]} 56. h4 {[%emt 0:00:27] Weighted Error Value: White=0.08 (flawless) /Black=0.25 (precise)} 1-0

[Event "Croatian 1B League 2022"]
[Site "Porec"]
[Date "2022.09.28"]
[Round "5.12"]
[White "Grbac, Boris"]
[Black "Vargic, Drago"]
[Result "1-0"]
[ECO "C00"]
[WhiteElo "2060"]
[BlackElo "2259"]
[Annotator "TA"]
[PlyCount "117"]
[EventDate "2022.09.24"]
[EventType "team-tourn"]
[EventCountry "CRO"]
[SourceTitle "playchess.com"]
[Source "ChessBase"]
[SourceQuality "1"]
[TimeControl "40/5400+30:1800+30"]

{[%evp 9,117,-30,-25,-39,-27,-25,-27,-32,-29,-60,-21,-32,-10,-42,32,0,0,0,0,0,-10,-12,39,30,42,33,33,14,42,52,36,28,21,22,194,204,200,195,189,200,200,189,202,194,201,202,208,210,201,208,221,161,176,77,66,24,181,173,159,28,556,307,708,708,6287,5481,5365,600,555,258,360,344,334,243,236,261,222,229,289,290,284,284,304,311,298,278,330,312,312,312,419,416,390,385,469,449,432,433,432,411,543,512,528,525,559,558,560,549,485,461]} 1. e4 {[%emt 0:00:02]} e6 {[%emt 0:00:21]} 2. Nf3 {[%emt 0:00:25]} d5 {[%emt 0:01:37]} 3. Nc3 {[%emt 0:01:21]} d4 {[%emt 0:09:20]} 4. Ne2 {[%emt 0:00:30]} c5 {[%emt 0:01:35]} 5. d3 {[%emt 0:02:50]} Nc6 {[%emt 0:00:59]} 6. g3 {[%emt 0:02:23] C00: French: Unusual White 2nd moves.} e5 {[%emt 0:01:29]} 7. Bg2 {[%emt 0:00:23]} Bd6 {[%emt 0:01:30]} 8. O-O {[%emt 0:01:11] Black has an edge.} Nge7 {[%emt 0:00:47]} 9. Ne1 {[%emt 0:06:44]} O-O {[%emt 0:05:26]} (9... h5 $5 {[%cal Rh5h4]}) 10. f4 {[%emt 0:01:06]} f5 {[%emt 0:04:02] [#]} (10... exf4 {is interesting.} 11. gxf4 f6 12. c3 Bg4) 11. Bd2 $146 {[%emt 0:21:42]} ({Predecessor:} 11. Nf3 Rb8 12. fxe5 Nxe5 13. Nf4 fxe4 14. Nxe5 Bxe5 15. dxe4 Nc6 16. Qe2 b5 17. Bd2 {1-0 (28) Marek,M (2200)-Muratidis,N (2184) Czech Republic 2014}) 11... Be6 {[%emt 0:18:36]} (11... fxe4 $15 12. dxe4 b6) 12. fxe5 {[%emt 0:02:58]} Bxe5 {[%emt 0:05:09]} 13. Nf4 {[%emt 0:01:04]} Bf7 {[%emt 0:03:14]} 14. Qe2 {[%emt 0:05:42]} fxe4 {[%emt 0:08:30]} 15. Bxe4 {[%emt 0:01:25]} Qd6 {[%emt 0:09:53]} (15... Bxf4 $11 16. Rxf4 Nd5) 16. Nf3 $14 {[%emt 0:01:37]} Bf6 {[%emt 0:00:30]} 17. Qg2 {[%emt 0:03:58]} Qd7 {[%emt 0:05:02]} 18. a3 {[%emt 0:06:13]} Rad8 {[%emt 0:01:24]} 19. Rae1 {[%emt 0:03:30]} Nd5 {[%emt 0:02:05]} 20. Nxd5 {[%emt 0:03:49]} Bxd5 {[%emt 0:00:08]} 21. Ng5 {[%emt 0:01:13]} Bxg5 {[%emt 0:06:36]} (21... Bxe4 $1 $11 22. Nxe4 (22. Qxe4 Bxg5 23. Rxf8+ Rxf8 $11) 22... Be7) 22. Rxf8+ $18 {[%emt 0:00:45]} (22. Bxg5 Bxe4 23. Rxe4 (23. Qxe4 Rfe8 $11) 23... Rxf1+ 24. Qxf1 Re8 $11) 22... Kxf8 {[%emt 0:00:55]} 23. Bxg5 {[%emt 0:00:09]} Bxe4 {[%emt 0:04:46]} 24. Qf2+ {[%emt 0:02:52]} ({Stronger than} 24. Qxe4 Re8 25. Qf4+ Kg8 26. Rxe8+ Qxe8 $11) 24... Kg8 {[%emt 0:03:44] [#] ...Rf8 is the strong threat.} 25. Bxd8 {[%emt 0:00:30]} ({Weaker is} 25. Rxe4 Re8 $11) 25... Bg6 {[%emt 0:00:11]} 26. Bg5 {[%emt 0:01:24]} h6 {[%emt 0:00:28]} 27. Bd2 {[%emt 0:01:03]} Kh7 {[%emt 0:00:48]} 28. Qf8 {[%emt 0:06:36]} Qd5 {[%emt 0:01:21]} 29. Qf4 {[%emt 0:06:30]} Qa2 {[%emt 0:01:43]} 30. Bc1 {[%emt 0:00:33]} c4 {[%emt 0:00:27] [#]} 31. Qc7 {[%emt 0:06:29]} (31. dxc4 $1 $18 {is more deadly.} Bxc2 32. Qf1) 31... cxd3 $16 {[%emt 0:00:35]} 32. Qxb7 {[%emt 0:02:44]} (32. cxd3 $5 {[%cal Rc7b7]} Qb3 33. Qf4 $16) 32... Qc4 {[%emt 0:01:06]} (32... Qd5 $1 $11 {and Black is okay.} 33. cxd3 Bxd3) 33. cxd3 $18 {[%emt 0:00:54]} Bxd3 {[%emt 0:00:42]} 34. Bf4 {[%emt 0:00:19]} ({Better is} 34. Qc7 $16) 34... Bc2 $2 {[%emt 0:00:29][%mdl 8192]} (34... Bg6 $1 $11) 35. Qc8 {[%emt 0:02:14]} Qd5 $2 {[%emt 0:01:42]} (35... Ne5 36. Qxc4 Nxc4) 36. Re8 {[%emt 0:00:46] Threatens to win with Rh8+.} Ba4 {[%emt 0:00:42]} 37. Rh8+ {[%emt 0:00:57]} Kg6 {[%emt 0:00:07]} 38. Qe8+ {[%emt 0:00:34]} (38. Qg4+ $142 Kf6 39. Rf8+ Qf7 40. Bg5+ hxg5 41. Qf3+ Ke6 42. Rxf7) 38... Qf7 {[%emt 0:01:00]} 39. Qxf7+ {[%emt 0:02:52]} Kxf7 {[%emt 0:00:02][%mdl 4096] Endgame KRB-KBN} 40. Rc8 {[%emt 0:00:08]} Ke6 {[%emt 0:00:25]} 41. b3 {[%emt 0:00:08]} Ne7 {[%emt 0:10:10]} 42. Rc4 {[%emt 0:01:00]} Bxb3 {[%emt 0:00:42]} 43. Rxd4 {[%emt 0:00:12]} a5 {[%emt 0:00:27]} 44. Re4+ {[%emt 0:01:38]} Kf7 {[%emt 0:01:12]} 45. a4 {[%emt 0:01:58]} Nc6 {[%emt 0:03:13]} 46. Bd2 {[%emt 0:00:31] Prevents Nb4.} h5 {[%emt 0:00:34]} 47. Kf2 {[%emt 0:00:37]} Kf8 {[%emt 0:02:29]} 48. Ke3 {[%emt 0:01:36]} Kf7 {[%emt 0:01:42]} 49. Kf4 {[%emt 0:00:45]} Bd5 {[%emt 0:01:44]} 50. Re1 {[%emt 0:01:29]} Bb3 {[%emt 0:01:12]} 51. Ra1 {[%emt 0:01:21]} g6 {[%emt 0:01:25]} 52. Bc3 {[%emt 0:00:49]} Ke6 {[%emt 0:00:40]} 53. Kg5 {[%emt 0:01:13]} Bc2 {[%emt 0:00:16]} 54. Ra2 {[%emt 0:00:21]} Bd3 {[%emt 0:02:05]} 55. Rd2 {[%emt 0:02:32] White is clearly winning.} Bf5 {[%emt 0:00:51]} 56. Rf2 {[%emt 0:00:49]} Bd3 {[%emt 0:00:26]} 57. Rf6+ {[%emt 0:00:57]} Kd5 {[%emt 0:00:06]} 58. h4 {[%emt 0:01:08]} Bc2 {[%emt 0:00:38]} 59. Rxg6 {[%emt 0:00:26] Weighted Error Value: White=0.42/Black=0.36} 1-0

[Event "Croatian 1B League 2022"]
[Site "Porec"]
[Date "2022.09.29"]
[Round "6.1"]
[White "Dobrovoljc, Vid"]
[Black "Doric, Darko"]
[Result "1/2-1/2"]
[WhiteElo "2402"]
[BlackElo "2457"]
[Annotator "TA"]
[PlyCount "28"]
[EventDate "2022.09.24"]
[EventType "team-tourn"]
[EventCountry "CRO"]
[SourceTitle "playchess.com"]
[Source "ChessBase"]
[SourceQuality "1"]
[TimeControl "40/5400+30:1800+30"]

{[%evp 11,14,0,0,7,6]} 1. e4 {[%emt 0:02:23]} c5 {[%emt 0:00:07]} 2. Nf3 {[%emt 0:00:48]} e6 {[%emt 0:00:08]} 3. d4 {[%emt 0:01:21]} cxd4 {[%emt 0:00:06]} 4. Nxd4 {[%emt 0:00:05]} Nf6 {[%emt 0:00:06]} 5. Nc3 {[%emt 0:00:12]} Nc6 {[%emt 0:00:08]} 6. a3 {[%emt 0:11:38]} Be7 {[%emt 0:00:32]} 7. Nxc6 {[%emt 0:05:29] B45: Sicilian Four Knights.} bxc6 {[%emt 0:00:10] [#] An uneventful encounter.} {Predecessor:} 8. e5 $146 Nd5 9. Qg4 Kf8 10. Bd2 h5 11. Qe4 Rb8 12. b3 f5 13. exf6 Bxf6 14. Qf3 Kg8 {½-½ (74) Caruana,F (2820)-Rapport,R (2763) Paris 2021} 1/2-1/2

[Event "Croatian 1B League 2022"]
[Site "Porec"]
[Date "2022.09.29"]
[Round "6.2"]
[White "Maksimovic, Bojan"]
[Black "Drnovsek, Gal"]
[Result "1-0"]
[ECO "B83"]
[WhiteElo "2468"]
[BlackElo "2393"]
[Annotator "TA"]
[PlyCount "57"]
[EventDate "2022.09.24"]
[EventType "team-tourn"]
[EventCountry "CRO"]
[SourceTitle "playchess.com"]
[Source "ChessBase"]
[SourceQuality "1"]
[TimeControl "40/5400+30:1800+30"]

{[%evp 21,57,58,72,57,77,83,87,95,90,62,85,-35,-52,-113,-120,-327,55,58,136,70,64,76,123,134,93,89,154,159,221,153,315,335,557,557,557,557,547,525]} 1. e4 {[%emt 0:00:03]} c5 {[%emt 0:00:10]} 2. Nf3 {[%emt 0:00:07]} d6 {[%emt 0:00:07]} 3. d4 {[%emt 0:00:04]} cxd4 {[%emt 0:00:06]} 4. Nxd4 {[%emt 0:00:06]} Nf6 {[%emt 0:00:08]} 5. Nc3 {[%emt 0:00:04]} a6 {[%emt 0:00:07]} 6. Be2 {[%emt 0:00:05]} e6 {[%emt 0:03:01]} 7. Be3 {[%emt 0:00:21]} Be7 {[%emt 0:00:20]} 8. Qd2 {[%emt 0:02:52]} Qc7 {[%emt 0:04:30]} 9. O-O-O {[%emt 0:01:18]} Nc6 {[%emt 0:07:41]} 10. f4 {[%emt 0:02:22]} Nxd4 {[%emt 0:13:16]} 11. Qxd4 {[%emt 0:00:33]} O-O {[%emt 0:01:29]} 12. g4 {[%emt 0:02:15] B83: Sicilian Scheveningen: 6 Be2, lines without ...a6.} d5 {[%emt 0:18:50]} 13. exd5 {[%emt 0:10:48]} Nxd5 {[%emt 0:00:45]} 14. Nxd5 {[%emt 0:00:11] White is better.} exd5 {[%emt 0:00:05]} 15. f5 {[%emt 0:04:22]} (15. Qxd5 $6 Be6 16. Qe5 Qc6 $11) 15... Bd7 {[%emt 0:04:17] [#]} 16. Bf3 $146 {[%emt 0:04:00]} (16. Bf4 $6 Qa5 17. Kb1 (17. Qxd5 Qxd5 18. Rxd5 Bc6 $15) 17... Bf6 $11) (16. Qb6 $16 Rac8 17. Qxc7 Rxc7 18. Bb6 (18. Rxd5 Bc6 $15)) ({Predecessor:} 16. Qd2 Rac8 17. Kb1 Rfe8 18. Bd4 Bf8 19. Bf3 Ba4 20. b3 Bc6 21. f6 g6 22. h4 {½-½ (46) Panjwani,R (2298)-Pasalic,M (2395) Chicago 2008}) 16... Rac8 $15 {[%emt 0:04:31][%csl Gc8][%cal Rc7c2]} 17. Qd2 {[%emt 0:04:24]} (17. c3 $15) 17... Ba4 $1 $17 {[%emt 0:02:26][%cal Ra4c2]} 18. b3 $2 {[%emt 0:04:03] [#]} (18. c3 $17 {only move.}) 18... d4 $2 {[%emt 0:07:07]} (18... Bb4 $1 $19 {[%cal Rb4d2][%mdl 512]} 19. Qg2 Rfe8) 19. Bf4 $36 {[%emt 0:01:14][%mdl 2048] White fights for an advantage.} (19. Bxd4 $2 {[#]} Bg5 $1 {[%mdl 512]} 20. c3 Bxd2+ $19) 19... Ba3+ {[%emt 0:02:49]} 20. Kb1 {[%emt 0:00:04]} Qc5 {[%emt 0:00:23][%cal Of8e8]} 21. Bxb7 {[%emt 0:11:58] Active counter play!} Bb4 {[%emt 0:01:19]} (21... Rcd8 $142) 22. Qf2 $16 {[%emt 0:01:07] The board is on fire.} (22. Qxd4 Qxc2+ 23. Ka1 Bc3+) 22... Rcd8 {[%emt 0:00:26]} 23. Bd2 {[%emt 0:03:19]} (23. bxa4 $2 Bc3 24. Rd3 Qb6+ 25. Kc1 Qxb7 $19) (23. Bxa6 $6 Bc6 24. f6 Bxh1 25. Rxh1 Qc6 $11) 23... Ba3 {[%emt 0:02:43]} 24. f6 {[%emt 0:06:01]} Rfe8 {[%emt 0:03:25]} (24... Qb6 $16) 25. Rhe1 {[%emt 0:01:05]} Qb5 $2 {[%emt 0:09:23]} (25... Qb6 $16) 26. Rxe8+ $18 {[%emt 0:00:49]} Rxe8 $2 {[%emt 0:07:38]} (26... Qxe8 {was necessary.} 27. Bxa6 (27. bxa4 Rb8 $14) 27... g6) 27. Qxd4 {[%emt 0:01:37] White is clearly winning.} Bxb3 {[%emt 0:00:06]} 28. axb3 {[%emt 0:00:07] Threatens to win with Bd5.} ({Less strong is} 28. cxb3 Qxb7 29. fxg7 Qc7 $16) 28... Qxb7 {[%emt 0:00:06]} 29. Qa4 {[%emt 0:00:08] Never resign too early!  Weighted Error Value: White=0.41/Black=0.63} 1-0

[Event "Croatian 1B League 2022"]
[Site "Porec"]
[Date "2022.09.29"]
[Round "6.3"]
[White "Petrov, Jole"]
[Black "Cabarkapa, Novak"]
[Result "1/2-1/2"]
[ECO "E62"]
[WhiteElo "2370"]
[BlackElo "2433"]
[Annotator "TA"]
[PlyCount "30"]
[EventDate "2022.09.24"]
[EventType "team-tourn"]
[EventCountry "CRO"]
[SourceTitle "playchess.com"]
[Source "ChessBase"]
[SourceQuality "1"]
[TimeControl "40/5400+30:1800+30"]

{[%evp 20,30,28,16,20,12,29,18,15,0,29,29,41]} 1. Nf3 {[%emt 0:00:09]} Nf6 {[%emt 0:00:05]} 2. g3 {[%emt 0:00:18]} g6 {[%emt 0:00:04]} 3. Bg2 {[%emt 0:00:08]} Bg7 {[%emt 0:00:03]} 4. O-O {[%emt 0:00:44]} O-O {[%emt 0:00:09]} 5. c4 {[%emt 0:00:11]} d6 {[%emt 0:00:09]} 6. d4 {[%emt 0:00:08]} c6 {[%emt 0:00:07]} 7. Nc3 {[%emt 0:02:41]} Bf5 {[%emt 0:00:05]} 8. b3 {[%emt 0:03:36]} Ne4 {[%emt 0:00:06]} 9. Bb2 {[%emt 0:00:08]} Nxc3 {[%emt 0:00:05]} 10. Bxc3 {[%emt 0:00:03]} Be4 {[%emt 0:00:03]} 11. e3 {[%emt 0:00:16]} e6 {[%emt 0:07:00] E62: King's Indian: Fianchetto: 6...c6 and Panno Variation (6...Nc6) without ...a6.} 12. Qe2 {[%emt 0:01:05]} d5 {[%emt 0:02:15]} 13. Rfc1 {[%emt 0:01:05]} Nd7 {[%emt 0:00:33]} 14. Bf1 {[%emt 0:00:12]} Bxf3 {[%emt 0:04:59]} 15. Qxf3 {[%emt 0:00:24] [#]} Nb6 $146 {[%emt 0:00:11] Black got outplayed after the opening.  Weighted Error Value: White=0.11 (very precise) /Black=0.13 (very precise)} ({Predecessor:} 15... Qe7 16. a4 Rfc8 17. b4 Nb6 18. c5 Nd7 19. b5 e5 20. Rab1 Nf8 21. dxe5 Bxe5 22. Bxe5 Qxe5 {1-0 (85) Lazavik,D (2440)-Ivic,V (2581) Chess.com INT 2021}) 1/2-1/2